Cogmind - Beta 14 @@@ ROGUE MODE // 2024.11.06 @ 12:47:40 Player: Shimmyarah Result: Destroyed by as-81550 with Assembled Heavy Rifle Performance ------------- Evolutions (0) 0 Regions Visited (2) 400 Robots Destroyed (20) 100 Value Destroyed (390) 390 Prototype IDs (0) 0 Alien Tech Used (0) 0 Bonus (-35) -35 TOTAL SCORE: 855 Bonus ------- Friendly Fire -35 Cogmind --------- Core Integrity 0/250 Matter 203/300 Energy 248/265 System Corruption 0% Temperature Cool (3) Movement Core (550) Ox10 Location -10/Mines Parts ------- > --- POWER (1) -------- Improved Ion Engine > --- PROPULSION (2) --- (None) > --- UTILITY (2) ------ Large Storage Unit Signal Interpreter > --- WEAPON (2) ------- Heavy EM Pulse Gun Heavy Assault Rifle > --- INVENTORY (15) --- Subdweller Power Source Light Treads Improved Heat Sink Compact Matter Pod (72) Visual Processing Unit Improved Terrain Scanner Seismic Detector Propulsion Shielding Trap Extractor (0/4) Trap Extractor (0/4) Heavy EM Pulse Gun Heavy Assault Rifle Subdweller Machine Gun Mining Laser Peak State ------------ > --- POWER ------------ Improved Ion Engine > --- PROPULSION ------- Light Treads Light Treads > --- UTILITY ---------- Large Storage Unit Signal Interpreter > --- WEAPON ----------- Heavy EM Pulse Gun Heavy EM Pulse Gun > --- INVENTORY -------- Subdweller Power Source Light Treads Improved Heat Sink Compact Matter Pod Visual Processing Unit Improved Terrain Scanner Propulsion Shielding Trap Extractor Trap Extractor Heavy Assault Rifle Heavy Assault Rifle Heavy Assault Rifle Heavy Assault Rifle Subdweller Machine Gun Mining Laser [Rating: 13] Favorites ----------- Power Improved Ion Engine Engine Improved Ion Engine Propulsion Light Treads Treads Light Treads Wheel Compact Wheel Utility Signal Interpreter Device Seismic Detector Storage Small Storage Unit Processor Signal Interpreter Weapon Heavy EM Pulse Gun Energy Gun Heavy EM Pulse Gun Ballistic Gun Assault Rifle Launcher Grenade Launcher Special Weapon Mining Laser Build | -11 -10 -10 ------- Run | Yrd Mat Min Slots Evolved . | . . . Power . | . . . Propulsion . | . . . Utility . | . . . Weapon . | . . . Parts Attached 38 | 7 25 6 Power 4 | 1 3 . Engine 4 | 1 3 . Core . | . . . Reactor . | . . . Propulsion 7 | 2 5 . Treads 2 | . 2 . Leg . | . . . Wheel 5 | 2 3 . Hover . | . . . Flight . | . . . Utility 5 | 2 3 . Device 2 | 1 1 . Storage 2 | 1 1 . Processor 1 | . 1 . Hackware . | . . . Protection . | . . . Artifact . | . . . Weapon 22 | 2 14 6 Energy Gun 4 | . 3 1 Energy Cannon . | . . . Ballistic Gun 12 | 2 6 4 Ballistic Cannon . | . . . Launcher 2 | . 2 . Special Weapon 4 | . 3 1 Impact Weapon . | . . . Slashing Weapon . | . . . Piercing Weapon . | . . . Special Melee Weapon . | . . . Unidentified Prototypes . | . . . Parts Lost 8 | . 5 3 Power . | . . . Propulsion 4 | . 2 2 Utility 1 | . 1 . Weapon 3 | . 2 1 Highest Loss Streak 3 | . 2 3 To Critical Strikes . | . . . Average Slot Usage (%) 94 | . 92 98 Engine 14 | . 14 14 Treads 16 | . 9 27 Wheel 9 | . 15 . Device 2 | . 4 . Storage 14 | . 14 14 Processor 11 | . 9 14 Energy Gun 6 | . . 15 Ballistic Gun 14 | . 17 10 Launcher 2 | . 4 . Special Weapon 1 | . 1 . Peak Build Rating 13 | 7 12 13 Average Rating 9 | 5 8 12 On Entrance 6 | . 7 12 Naked Turns . | . . . Heaviest Build 34 | 12 34 33 Greatest Support 40 | 26 40 40 Greatest Overweight (x) 3 | . 3 . Average Overweight (x) . | . . . Largest Inventory Capacity 15 | 8 15 15 Average Capacity 11 | 7 8 15 Most Carried 15 | 6 14 15 Average Carried 9 | 3 7 14 Final Capacity 15 | 8 15 15 Final Carried 14 | 5 14 14 Class Distribution -------------------- 100% | Mutant Dominant Class ---------------- Mutant | -10/Materials Mutant | -10/Mines Resources | -11 -10 -10 ----------- Run | Yrd Mat Min Matter Collected 861 | 322 282 257 Remotely . | . . . Salvage Created 472 | 175 194 103 Parts 34 | 14 13 7 Haulers Intercepted . | . . . Recyclers Shooed . | . . . Parts Field Recycled . | . . . Retrieved Matter . | . . . Parts Self-Destructed . | . . . Prevented . | . . . Kills | -11 -10 -10 ------- Run | Yrd Mat Min Combat Hostiles Destroyed 11 | . 8 3 Guns 8 | . 5 3 AOE 3 | . 3 . Classes Destroyed 8 | 2 4 2 Builder 1 | . 1 . Tunneler 6 | 5 . 1 Recycler 2 | 1 . 1 Watcher 2 | . 2 . Swarmer 3 | . 3 . Grunt 5 | . 5 . Demolisher 1 | . . 1 Assembled 2 | . . 2 Best Kill Streak 6 | 6 3 3 Combat Bots Only 3 | . 3 3 Max Kills in Single Turn 2 | 1 2 1 Gunslinging . | . . . Exploded 1 | . 1 . Melee . | . . . Uniques/NPCs Destroyed . | . . . Combat | -11 -10 -10 -------- Run | Yrd Mat Min Hostile Shots Fired 103 | . 58 45 Missed 35 | . 22 13 Damage Taken 1292 | . 590 702 Core 251 | . 94 157 Absorbed by Shields . | . . . Core Remaining (%) 100 | 100 . . Volleys Fired 100 | 13 65 22 Largest 2 | 2 2 2 Hottest 120 | 40 120 100 Shots Fired 151 | 26 90 35 Gun 123 | 26 70 27 Cannon . | . . . Launcher 14 | . 14 . Special 14 | . 6 8 Kinetic 116 | 26 70 20 Thermal 14 | . 6 8 Explosive 14 | . 14 . Electromagnetic 7 | . . 7 Robot Hit Streak 7 | 6 7 6 Robot Miss Streak 6 | 2 5 6 Penetration Max . | . . . Secondary Targets 2 | . . 2 Max Gunslinging Chain 1 | . . 1 Shots Hit Robots 72 | 18 36 18 Core Hits 40 | 8 21 11 Critical Kills 1 | 1 . . Critical Parts Destroyed . | . . . Critical Strikes 3 | 1 . 2 Destroy 1 | 1 . . Corrupt 2 | . . 2 Melee Attacks . | . . . Impact . | . . . Slashing . | . . . Piercing . | . . . Sneak Attacks . | . . . Combat Hostiles . | . . . Follow-up Attacks . | . . . Damage Inflicted 1633 | 212 1112 309 Guns 861 | 212 366 283 Cannons . | . . . Explosions 723 | . 723 . Melee . | . . . Ramming 49 | . 23 26 Kinetic 775 | 212 366 197 Thermal . | . . . Explosive 723 | . 723 . Electromagnetic 86 | . . 86 Impact . | . . . Slashing . | . . . Piercing . | . . . Highest Corruption . | . . . Average Corruption . | . . . Corruption Purged . | . . . Corruption Blocked . | . . . Overload Shots . | . . . Overflow Damage 18 | . 18 . Projectiles . | . . . Explosions 18 | . 18 . Melee . | . . . Knockbacks . | . . . Impact . | . . . Kinetic . | . . . Secondary . | . . . Self-Inflicted Damage 81 | . 81 . Shots 3 | . 3 . Rammed 5 | . 3 2 Targets Rammed 6 | . 3 3 Kicked . | . . . Crushed 1 | . . 1 Highest Temperature 192 | . 60 192 Average Temperature 50 | . 19 73 Received Heat Transfer 215 | . 186 29 Siege Activations . | . . . Robots Corrupted . | . . . Combat Hostiles . | . . . Parts Fried . | . . . Impact Corruptions . | . . . Robots Melted . | . . . Combat Hostiles . | . . . Parts Melted . | . . . Heat Transferred . | . . . Parts Sabotaged . | . . . Parts Stolen . | . . . Parts Stripped . | . . . Power Chain Reactions . | . . . Alert | -11 -10 -10 ------- Run | Yrd Mat Min Peak Influence 252 | 30 252 44 Initial 39 | . 19 39 Average 83 | 12 125 28 Maximum Alert Level 1 | . 1 . Low Security (%) 87 | 100 78 100 Level 1 12 | . 21 . Level 2 . | . . . Level 3 . | . . . Level 4 . | . . . Level 5 . | . . . High Security . | . . . Max Security . | . . . Squads Dispatched 2 | . 2 . Investigation 1 | . 1 . Extermination . | . . . Reinforcement 1 | . 1 . Assault . | . . . Garrison . | . . . Intercept . | . . . Searches Triggered . | . . . Construction Impeded . | . . . Haulers Reinforced . | . . . Active Scanning Responses . | . . . Cargo Convoy Interrupts . | . . . Stealth | -11 -10 -10 --------- Run | Yrd Mat Min Distress Signals 1 | . 1 . Communications Jammed . | . . . Distress Signals . | . . . Times Spotted 42 | . 19 23 Peak Tracking Total 19 | . 4 19 Tactical Retreats 2 | . 2 . Traps | -11 -10 -10 ------- Run | Yrd Mat Min Traps Triggered 1 | . 1 . Indirectly . | . . . Trap Hack Attempts . | . . . Triggered . | . . . Disarmed . | . . . Reprogrammed . | . . . Reused . | . . . Traps Extracted . | . . . Installed . | . . . Triggered . | . . . Machines | -11 -10 -10 ---------- Run | Yrd Mat Min Machines Disabled 3 | . 2 1 Max in Single Turn 1 | . 1 1 Machines Repaired . | . . . Machines Dismantled . | . . . Machines Sabotaged . | . . . Overloaded Fab Kills . | . . . Hacking | -11 -10 -10 --------- Run | Yrd Mat Min Machines Accessed 1 | . 1 . Terminals 1 | . 1 . Fabricators . | . . . Repair Stations . | . . . Recycling Units . | . . . Scanalyzers . | . . . Garrison Access . | . . . Total Hacks 4 | . 4 . Successful 1 | . 1 . Failed 3 | . 3 . Catastrophic . | . . . Database Lockouts . | . . . Manual . | . . . Terminals 4 | . 4 . Fabricators . | . . . Repair Stations . | . . . Recycling Units . | . . . Scanalyzers . | . . . Garrison Access . | . . . Terminal Hacks 1 | . 1 . Hauler Manifests 1 | . 1 . Fabricator Hacks . | . . . Repair Station Hacks . | . . . Recycling Unit Hacks . | . . . Scanalyzer . | . . . Garrison Access Hacks . | . . . Unauthorized Hacks . | . . . Terminals . | . . . Fabricators . | . . . Repair Stations . | . . . Recycling Units . | . . . Scanalyzers . | . . . Garrison Access . | . . . Data Cores Recovered . | . . . Used . | . . . Hacking Detections 1 | . 1 . Full Trace Events . | . . . Feedback Events . | . . . Feedback Blocked . | . . . Robot Schematics Acquired . | . . . Robots Built . | . . . Authchips . | . . . Time . | . . . Total Robot Build Rating . | . . . Part Schematics Acquired . | . . . Parts Built . | . . . Authchips . | . . . Time . | . . . Total Part Build Rating . | . . . Parts Repaired . | . . . Time . | . . . Parts Recycled . | . . . Recycled Matter . | . . . Retrieved Matter . | . . . Retrieved Components . | . . . Parts Scanalyzed . | . . . Part Schematics Acquired . | . . . Parts Damaged . | . . . Bothacking | -11 -10 -10 ------------ Run | Yrd Mat Min Used RIF Installer . | . . . Robots Hacked . | . . . Non-combat . | . . . Combat . | . . . Robot Hacks Applied . | . . . Relay Couplers Released . | . . . Fabnet Peak Effective % . | . . . Robots Rewired . | . . . Allies Hacked . | . . . Hacks Repelled . | . . . Allies | -11 -10 -10 -------- Run | Yrd Mat Min Total Allies . | . . . Largest Group . | . . . Highest-Rated Group . | . . . Highest-Rated Ally . | . . . Total Orders . | . . . Ally Attacks . | . . . Total Damage . | . . . Kills . | . . . Allies Corrupted . | . . . Allies Melted . | . . . Intel | -11 -10 -10 ------- Run | Yrd Mat Min Robot Analysis Total . | . . . Derelict Logs Recovered 2 | . . 2 Drone Launches . | . . . Drone Recoveries . | . . . Exploration | -11 -10 -10 ------------- Run | Yrd Mat Min Turns Passed 1759 | 116 1008 635 Spaces Moved 1068 | 69 658 341 Core 26 | 4 22 . Treads 532 | . 191 341 Legs . | . . . Wheels 510 | 65 445 . Hover . | . . . Flight . | . . . Fastest Speed 50 | 50 90 160 Average Speed 129 | 87 118 160 Slowest Speed 200 | 90 200 160 Overloaded Moves . | . . . Propulsion Burnouts . | . . . Robots Hopped . | . . . Cave-ins Triggered . | . . . Exploration Rate (%) 46 | 4 86 49 Regions Visited 2 Branch Regions 1 Pre-discovered Areas . | . . . Known Exits Taken 1 | . 1 . Unknown Exits Taken 1 | 1 . . Scrap Searched . | . . . Spaces Dug 20 | . 14 6 Terrain Destroyed 97 | . 91 6 Melee . | . . . Projectile 12 | . 6 6 AOE 85 | . 85 . Terrain Rammed . | . . . Walls Destroyed . | . . . Machines Disabled . | . . . Actions | -11 -10 -10 --------- Run | Yrd Mat Min Total 1260 | 100 782 378 Wait . | . . . Move 1066 | 68 657 341 Hop . | . . . Pick Up 36 | 12 21 3 Fast Attach 2 | . 1 1 Attach 15 | 7 7 1 Detach 2 | . 2 . Swap 21 | . 17 4 Drop 12 | . 9 3 Fire 100 | 13 65 22 Melee . | . . . Ram 3 | . 3 . Kick . | . . . Crush 3 | . . 3 Escape Stasis . | . . . Rewire . | . . . Trap . | . . . Miscellaneous . | . . . Route ------- -11/Scrapyard -10/Materials (discovered 4 exits: *Mat x2 / *Min x2) -10/Mines (discovered 1 exit: *Mat) History --------- Turn | Location | Event 12 | -11/Scrapyard | Discovered new exit (range 15) 117 | -11/Scrapyard | Entered Materials 318 | -10/Materials | Build established: Mutant 434 | -10/Materials | Discovered new exit (range 12) 465 | -10/Materials | Identified exit to Materials 556 | -10/Materials | Discovered new exit (range 15) 617 | -10/Materials | Derelicts attacked the area 657 | -10/Materials | Identified exit to Mines 755 | -10/Materials | Discovered exit to Materials (range 3) 895 | -10/Materials | Discovered exit to Mines (range 7) 1125 | -10/Materials | Entered Mines 1191 | -10/Mines | Learned 4 Materials zone layouts 1193 | -10/Mines | Learned Materials garrison access intel 1244 | -10/Mines | Discovered exit to Materials (range 7) 1263 | -10/Mines | Joined a pair of Derelicts in attacking an 0b10 outpost 1715 | -10/Mines | Assembled infested the area 1747 | -10/Mines | Core integrity fell below 50% 1759 | -10/Mines | Core integrity fell below 20% 1760 | -10/Mines | Destroyed by as-81550 with Assembled Heavy Rifle Last Messages --------------- 01747_ Switching to secondary target: as-61937. 01747_ C-30 ARC bursts open, deploying its payload. 01747_ D-53 Grenadier unfolds itself. 01749_ as-51804 destroyed. 01751_ The unstable cave ceiling collapses. 01751_ as-32098 destroyed. 01753_ Lgt. Treads destroyed. 01753_ as-59025 destroyed. 01754_ The unstable cave ceiling collapses. 01754_ Hvy. Assault Rifle destroyed. 01754_ as-30904 destroyed. 01755_ as-14057 destroyed. 01756_ as-04357 destroyed. 01756_ as-61937 destroyed. 01757_ The unstable cave ceiling collapses. 01757_ Lgt. Treads destroyed. 01758_ as-08834 destroyed. 01759_ The unstable cave ceiling collapses. 01759_ D-53 Grenadier destroyed. Map ----- +----------------------------------------------------+ | ??# #### #??#####???????????????????????????????? | | ??# #??????????????????????????????????????? | | ??## #??????????????????????????????????????? | | ???# ### #??????????????????????????????????????? | | ???#?### #??????????????????????????????????????? | | ????## #??????????????????????????????????????? | | ????# #??????????????????????????????????????? | | ????# ##??????????????????????????????????????? | | ????## #????????#??????????????????????????????? | | ?????# ##?????? #??????????????????????????????? | | ?????# ###### #??????????????????????????????? | | ?????## #??????????????????????????????? | | ??????# #??????????????????????????????? | | ??????## ######??????????????????????????????? | | ???????### ##???????????????????????????????????? | | ?????????## #????????????????????????????????????? | | ??????????# #????????????????????????????????????? | | ??????????# #????????????????????????????????????? | | ??????????# ########?????????????????????????????? | | ??????????# #???????????????????????????? | | ??????????# ########??#######????????????????????? | | ??????????# #????????## ##???????????????????? | | ??????????# #???????## ##??????????????????? | | ?????###### #???????# #??????????????????? | | ###### ## #???????# a #a #????????????? | | # ## # #????#### @a aa ????????? | | #??### a a #???????????? | | # # #?## # #??????????? | | ## ##### #?# ##??? #??????????? | | ?######???#*### ## ##????????#??????????? | | ??????????#=[ ####%###????????????????????? | | ??????????###### d #??????????????????????? | | ???????????????############??????????????????????? | | ?????????????????????????????????????????????????? | | ?????????????????????????????????????????????????? | | | | | | | | | | | | | | | | | | | | | | | | | | | | | | | +----------------------------------------------------+ Best States ------------- Heat Dissipation 25 Energy Generation 15 Energy Capacity 265 Matter Stores 300 Matter Capacity 300 Sight Range 16 Terrain Scan Range 16 Terrain Scan Density 10 Evasion (%) 42 Recoil Reduction 2 Item Schematics ----------------- None Robot Schematics ------------------ None Fabricated ------------ Nothing Alien Tech Used ----------------- None Achievements -------------- Shopping List Challenges ------------ None Game ------ Seed DiametricFlakEngine Manual? 0 Play Time 00:26:14 Cumulative 10.3 hours Start 2024.11.06 @ 12:10:26 End 2024.11.06 @ 12:47:40 Sessions 1 Manual Loads 0 Difficulty Rogue Special Mode None Game No. 25 Rogue 25 Adventurer 0 Explorer 0 Win Type - Total 0 Types 0/0/0/0/0/0/0/0/0 Lore% 6 Gallery% 12 Achievement% 10 Wizard Run 0 Options --------- Layout 1 ASCII 0 Keyboard 0 Movement Arrows Keybinds 0 Fullscreen 1 Font 24/Smallcaps Map View 50x40 Zoom Use 15% Tactical HUD 1 Map Filters NONE Filters NONE Steam 1 RUN: 38a721ea-24fe-42e0-8483-29329d6f0643